[Event "CZE-ch U16 Girls 2023"]
[Site "Teplice"]
[Date "2023.03.14"]
[Round "5.7"]
[White "Macova, Marketa"]
[Black "Janouskova, Adela"]
[Result "0-1"]
[ECO "B26"]
[WhiteElo "1195"]
[BlackElo "1558"]
[Annotator "NA RC COMBH"]
[PlyCount "78"]
[EventDate "2023.03.09"]
[EventType "swiss"]
[EventCountry "CZE"]
[SourceTitle "playchess.com"]
[Source "ChessBase"]
[SourceQuality "1"]
[TimeControl "40/5400+30:1800+30"]

1. e4 {[%emt 0:00:07]} c5 {[%emt 0:00:22]} 2. Nc3 {[%emt 0:00:23]} Nc6 {[%emt 0:01:00]} 3. g3 {[%emt 0:00:19]} g6 {[%emt 0:01:21]} 4. Bg2 {[%emt 0:00:27]} Bg7 {[%emt 0:00:38]} 5. d3 {[%emt 0:01:10]} d6 {[%emt 0:00:54]} 6. Be3 {[%emt 0:00:41]} e6 {[%emt 0:01:50]} 7. f4 {[%emt 0:00:42]} Nge7 {[%emt 0:02:12]} 8. Nf3 {[%emt 0:01:17]} a6 {[%emt 0:05:42]} 9. O-O {[%emt 0:00:52]} O-O {[%emt 0:02:20]} 10. Qe2 {[%emt 0:10:04]} Nd4 {[%emt 0:03:46]} 11. Qd1 {[%emt 0:03:54]} Nec6 {[%emt 0:01:57]} 12. Bxd4 {[%emt 0:05:41]} cxd4 {[%emt 0:01:18]} 13. Ne2 {[%emt 0:00:27]} Qb6 {[%emt 0:00:51]} 14. b3 {[%emt 0:01:18]} Bd7 {[%emt 0:00:44]} 15. g4 {[%emt 0:02:23]} f5 {[%emt 0:07:30]} 16. gxf5 {[%emt 0:05:18]} exf5 {[%emt 0:01:00]} 17. exf5 {[%emt 0:01:42]} Bxf5 {[%emt 0:00:51]} 18. Nh4 {[%emt 0:03:11]} Ne7 {[%emt 0:08:42]} 19. Ng3 {[%emt 0:05:35]} Bd7 {[%emt 0:07:16]} 20. Qd2 {[%emt 0:05:44]} Bh6 {[%emt 0:04:37]} 21. Rae1 {[%emt 0:02:37]} Rae8 {[%emt 0:02:52]} 22. Ne4 {[%emt 0:07:12]} Nd5 {[%emt 0:04:53]} 23. Ng5 {[%emt 0:06:40]} Ne3 {[%emt 0:03:01]} 24. Rf2 {[%emt 0:03:55]} Rc8 {[%emt 0:02:41]} 25. Rc1 {[%emt 0:01:58]} Rc7 {[%emt 0:09:57]} 26. c3 {[%emt 0:05:37]} dxc3 {[%emt 0:03:19]} 27. Rxc3 {[%emt 0:03:08]} Rxc3 {[%emt 0:00:58]} 28. Qxc3 {[%emt 0:00:35]} Bxg5 {[%emt 0:00:45]} 29. Nf3 {[%emt 0:08:47]} Bxf4 {[%emt 0:04:14]} 30. Ne1 {[%emt 0:03:29]} Bxh2+ {[%emt 0:06:39]} 31. Kxh2 {[%emt 0:01:43]} Rxf2 {[%emt 0:00:07]} 32. Kh1 {[%emt 0:02:26]} Bc6 {[%emt 0:03:23]} 33. a3 {[%emt 0:05:10]} Bxg2+ {[%emt 0:00:53]} 34. Nxg2 {[%emt 0:00:15]} Nxg2 {[%emt 0:03:44]} 35. Qc8+ {[%emt 0:01:28]} Kg7 {[%emt 0:00:27]} 36. Qd7+ {[%emt 0:00:54]} Rf7 {[%emt 0:00:08]} 37. Qh3 {[%emt 0:00:55]} Qf2 {[%emt 0:00:27]} 38. Qxg2 {[%emt 0:00:52]} Qxg2+ {[%emt 0:00:06]} 39. Kxg2 {[%emt 0:00:12]} h5 {[%emt 0:00:04]} 0-1

[Event "CZE-ch U16 Girls 2023"]
[Site "Teplice"]
[Date "2023.03.14"]
[Round "5.8"]
[White "Souralova, Jana"]
[Black "Sikorova, Jana"]
[Result "1/2-1/2"]
[ECO "B40"]
[WhiteElo "1187"]
[BlackElo "1735"]
[Annotator "NA RC COMBH"]
[PlyCount "83"]
[EventDate "2023.03.09"]
[EventType "swiss"]
[EventCountry "CZE"]
[SourceTitle "playchess.com"]
[Source "ChessBase"]
[SourceQuality "1"]
[TimeControl "40/5400+30:1800+30"]

1. e4 {[%emt 0:00:03]} c5 {[%emt 0:00:07]} 2. Nf3 {[%emt 0:00:08]} e6 {[%emt 0:00:18]} 3. Be2 {[%emt 0:00:31]} a6 {[%emt 0:00:50]} 4. O-O {[%emt 0:00:28]} Qc7 {[%emt 0:00:11]} 5. d4 {[%emt 0:00:24]} cxd4 {[%emt 0:00:19]} 6. Nxd4 {[%emt 0:00:11]} Nf6 {[%emt 0:00:28]} 7. Nc3 {[%emt 0:01:04]} b5 {[%emt 0:00:41]} 8. Bf3 {[%emt 0:07:10]} Nc6 {[%emt 0:06:07]} 9. Nxc6 {[%emt 0:03:19]} dxc6 {[%emt 0:00:27]} 10. Be3 {[%emt 0:07:19]} Bb7 {[%emt 0:00:48]} 11. Qe2 {[%emt 0:04:56]} Be7 {[%emt 0:02:07]} 12. Rad1 {[%emt 0:01:07]} O-O {[%emt 0:02:09]} 13. a3 {[%emt 0:01:51]} c5 {[%emt 0:02:27]} 14. Rd2 {[%emt 0:11:55]} Rad8 {[%emt 0:03:49]} 15. Rfd1 {[%emt 0:00:38]} Rd7 {[%emt 0:04:06]} 16. Bf4 {[%emt 0:17:09]} Rxd2 {[%emt 0:02:25]} 17. Qxd2 {[%emt 0:04:04]} Qc8 {[%emt 0:07:31]} 18. Qe3 {[%emt 0:05:24]} Rd8 {[%emt 0:03:09]} 19. Rd2 {[%emt 0:02:52]} Rxd2 {[%emt 0:04:13]} 20. Qxd2 {[%emt 0:00:07]} b4 {[%emt 0:01:49]} 21. axb4 {[%emt 0:03:24]} cxb4 {[%emt 0:00:44]} 22. Na4 {[%emt 0:01:10]} Bxe4 {[%emt 0:00:56]} 23. Bxe4 {[%emt 0:00:41]} Nxe4 {[%emt 0:00:15]} 24. Qd3 {[%emt 0:04:41]} Qc6 {[%emt 0:02:36]} 25. b3 {[%emt 0:01:56]} h6 {[%emt 0:03:48]} 26. h3 {[%emt 0:04:21]} Nc5 {[%emt 0:10:25]} 27. Qc4 {[%emt 0:01:37]} Qe4 {[%emt 0:02:01]} 28. Qxe4 {[%emt 0:02:59]} Nxe4 {[%emt 0:00:20]} 29. Kf1 {[%emt 0:00:15]} Kf8 {[%emt 0:01:37]} 30. Ke2 {[%emt 0:00:06]} Bd6 {[%emt 0:01:43]} 31. Bxd6+ {[%emt 0:01:49]} Nxd6 {[%emt 0:00:55]} 32. Kd3 {[%emt 0:00:07]} Ke7 {[%emt 0:05:29]} 33. Kd4 {[%emt 0:00:17]} Nb5+ {[%emt 0:01:16]} 34. Kc4 {[%emt 0:00:56]} Na3+ {[%emt 0:00:41]} 35. Kxb4 {[%emt 0:00:24]} Nxc2+ {[%emt 0:00:09]} 36. Ka5 {[%emt 0:00:19]} Nd4 {[%emt 0:01:42]} 37. Nc5 {[%emt 0:00:52]} Kd6 {[%emt 0:01:03]} 38. b4 {[%emt 0:00:14]} Nc6+ {[%emt 0:02:10]} 39. Ka4 {[%emt 0:00:23]} Nb8 {[%emt 0:03:41]} 40. Ka5 {[%emt 0:00:50]} Nc6+ {[%emt 0:01:38]} 41. Ka4 {[%emt 0:30:25]} Nb8 {[%emt 0:31:28]} 42. Ka5 {[%emt 0:06:29]} 1/2-1/2

[Event "CZE-ch U16 Girls 2023"]
[Site "Teplice"]
[Date "2023.03.14"]
[Round "5.9"]
[White "Hetfleischova, Elen"]
[Black "Sterikova, Marketa"]
[Result "1/2-1/2"]
[ECO "C02"]
[WhiteElo "1623"]
[BlackElo "1254"]
[Annotator "NA RC COMBH"]
[PlyCount "62"]
[EventDate "2023.03.09"]
[EventType "swiss"]
[EventCountry "CZE"]
[SourceTitle "playchess.com"]
[Source "ChessBase"]
[SourceQuality "1"]
[TimeControl "40/5400+30:1800+30"]

1. e4 {[%emt 0:00:03]} e6 {[%emt 0:00:03]} 2. d4 {[%emt 0:00:13]} d5 {[%emt 0:00:05]} 3. e5 {[%emt 0:00:05]} c5 {[%emt 0:00:19]} 4. Nf3 {[%emt 0:00:39]} Nc6 {[%emt 0:00:43]} 5. c3 {[%emt 0:01:44]} Bd7 {[%emt 0:02:47]} 6. Be3 {[%emt 0:01:01]} Qb6 {[%emt 0:00:56]} 7. Qc2 {[%emt 0:03:57]} h6 {[%emt 0:07:26]} 8. Nbd2 {[%emt 0:01:35]} cxd4 {[%emt 0:03:20]} 9. Nxd4 {[%emt 0:04:52]} Nxd4 {[%emt 0:02:22]} 10. Bxd4 {[%emt 0:00:29]} Bc5 {[%emt 0:00:34]} 11. Nf3 {[%emt 0:06:58]} Ne7 {[%emt 0:00:51]} 12. Bd3 {[%emt 0:02:24]} Rc8 {[%emt 0:02:21]} 13. O-O {[%emt 0:01:21]} Bxd4 {[%emt 0:00:12]} 14. Nxd4 {[%emt 0:00:06]} Nc6 {[%emt 0:03:31]} 15. Nxc6 {[%emt 0:07:17]} Bxc6 {[%emt 0:00:11]} 16. Rae1 {[%emt 0:10:06]} O-O {[%emt 0:00:47]} 17. Re3 {[%emt 0:02:44]} d4 {[%emt 0:04:28]} 18. Rh3 {[%emt 0:01:56]} dxc3 {[%emt 0:02:44]} 19. bxc3 {[%emt 0:02:42]} Qd8 {[%emt 0:01:20]} 20. Rd1 {[%emt 0:02:33]} Qg5 {[%emt 0:00:38]} 21. Rg3 {[%emt 0:02:34]} Qxe5 {[%emt 0:01:02]} 22. f4 {[%emt 0:06:11]} Qc5+ {[%emt 0:02:36]} 23. Kh1 {[%emt 0:00:26]} Bb5 {[%emt 0:04:14]} 24. Be4 {[%emt 0:03:13]} Rc7 {[%emt 0:03:09]} 25. Qb2 {[%emt 0:01:31]} Bc6 {[%emt 0:03:06]} 26. c4 {[%emt 0:02:02]} f5 {[%emt 0:00:23]} 27. Bd3 {[%emt 0:03:49]} Be4 {[%emt 0:06:53]} 28. Be2 {[%emt 0:03:52]} Re7 {[%emt 0:06:14]} 29. Rf1 {[%emt 0:06:59]} Kh7 {[%emt 0:03:02]} 30. Rd1 {[%emt 0:03:47]} b6 {[%emt 0:08:53]} 31. Qc3 {[%emt 0:02:22]} Rc8 {[%emt 0:01:43]} 1/2-1/2

[Event "CZE-ch U16 Girls 2023"]
[Site "Teplice"]
[Date "2023.03.14"]
[Round "5.10"]
[White "Reznickova, Sibyla"]
[Black "Foldynova, Julie"]
[Result "1-0"]
[ECO "D56"]
[WhiteElo "1386"]
[BlackElo "1100"]
[Annotator "NA RC COMBH"]
[PlyCount "39"]
[EventDate "2023.03.09"]
[EventType "swiss"]
[EventCountry "CZE"]
[SourceTitle "playchess.com"]
[Source "ChessBase"]
[SourceQuality "1"]
[TimeControl "40/5400+30:1800+30"]

1. d4 {[%emt 0:00:17]} d5 {[%emt 0:00:12]} 2. c4 {[%emt 0:00:19]} e6 {[%emt 0:00:13]} 3. Nc3 {[%emt 0:00:25]} Nf6 {[%emt 0:00:32]} 4. Bg5 {[%emt 0:00:45]} Be7 {[%emt 0:00:23]} 5. Nf3 {[%emt 0:00:18]} h6 {[%emt 0:00:44]} 6. Bh4 {[%emt 0:00:34]} O-O {[%emt 0:00:26]} 7. e3 {[%emt 0:00:19]} Nbd7 {[%emt 0:00:46]} 8. Bd3 {[%emt 0:00:59]} b6 {[%emt 0:02:15]} 9. O-O {[%emt 0:01:07]} Bb7 {[%emt 0:00:39]} 10. Re1 {[%emt 0:02:06]} c5 {[%emt 0:00:57]} 11. Rc1 {[%emt 0:02:56]} dxc4 {[%emt 0:01:24]} 12. Bxc4 {[%emt 0:00:40]} Rc8 {[%emt 0:01:08]} 13. b3 {[%emt 0:02:56]} cxd4 {[%emt 0:02:47]} 14. Nxd4 {[%emt 0:04:37]} Nc5 {[%emt 0:04:43]} 15. f3 {[%emt 0:04:50]} e5 {[%emt 0:04:32]} 16. Nf5 {[%emt 0:03:39]} Re8 {[%emt 0:05:36]} 17. Bxf6 {[%emt 0:01:24]} gxf6 {[%emt 0:03:43]} 18. Nxh6+ {[%emt 0:01:16]} Kf8 {[%emt 0:02:20]} 19. Qc2 {[%emt 0:02:52]} Bd6 {[%emt 0:05:04]} 20. Qh7 {[%emt 0:03:41]} 1-0

[Event "CZE-ch U16 Girls 2023"]
[Site "Teplice"]
[Date "2023.03.14"]
[Round "5.11"]
[White "Mullerova, Karina Nela"]
[Black "Andilova, Klara"]
[Result "1-0"]
[ECO "A00"]
[WhiteElo "1283"]
[BlackElo "1104"]
[Annotator "NA RC COMBH"]
[PlyCount "65"]
[EventDate "2023.03.09"]
[EventType "swiss"]
[EventCountry "CZE"]
[SourceTitle "playchess.com"]
[Source "ChessBase"]
[SourceQuality "1"]
[TimeControl "40/5400+30:1800+30"]

1. b4 {[%emt 0:00:13]} e5 {[%emt 0:04:03]} 2. Bb2 {[%emt 0:00:17]} Bxb4 {[%emt 0:00:16]} 3. Bxe5 {[%emt 0:00:12]} Nf6 {[%emt 0:00:26]} 4. c4 {[%emt 0:11:14]} Nc6 {[%emt 0:03:38]} 5. Bc3 {[%emt 0:01:54]} Be7 {[%emt 0:01:42]} 6. d4 {[%emt 0:07:24]} d5 {[%emt 0:01:00]} 7. e3 {[%emt 0:00:08]} O-O {[%emt 0:01:01]} 8. Nf3 {[%emt 0:00:13]} Bf5 {[%emt 0:00:39]} 9. Bd3 {[%emt 0:01:49]} Qd7 {[%emt 0:03:54]} 10. Qe2 {[%emt 0:03:48]} Bd8 {[%emt 0:03:46]} 11. Nbd2 {[%emt 0:03:48]} Re8 {[%emt 0:01:06]} 12. O-O {[%emt 0:19:14]} Ne4 {[%emt 0:11:29]} 13. Bb2 {[%emt 0:01:39]} Bf6 {[%emt 0:01:13]} 14. cxd5 {[%emt 0:03:00]} Qxd5 {[%emt 0:03:03]} 15. Bc4 {[%emt 0:04:27]} Qd6 {[%emt 0:01:37]} 16. Nxe4 {[%emt 0:02:24]} Bxe4 {[%emt 0:01:08]} 17. Rfd1 {[%emt 0:04:09]} Qe7 {[%emt 0:06:14]} 18. a4 {[%emt 0:04:20]} Qd7 {[%emt 0:11:17]} 19. Nd2 {[%emt 0:09:16]} Bd5 {[%emt 0:09:42]} 20. Rab1 {[%emt 0:04:34]} Qf5 {[%emt 0:04:21]} 21. Bd3 {[%emt 0:04:39]} Qg5 {[%emt 0:02:36]} 22. Nf3 {[%emt 0:02:10]} Qh5 {[%emt 0:00:18]} 23. Bc3 {[%emt 0:02:49]} Bxf3 {[%emt 0:00:22]} 24. Qxf3 {[%emt 0:00:05]} Qxf3 {[%emt 0:00:07]} 25. gxf3 {[%emt 0:00:04]} Rab8 {[%emt 0:01:25]} 26. Rdc1 {[%emt 0:02:26]} Red8 {[%emt 0:02:51]} 27. Be4 {[%emt 0:01:43]} g6 {[%emt 0:10:53]} 28. Rb2 {[%emt 0:00:31]} Ne7 {[%emt 0:01:44]} 29. Rxb7 {[%emt 0:01:35]} Rxb7 {[%emt 0:00:36]} 30. Bxb7 {[%emt 0:00:02]} Rb8 {[%emt 0:02:19]} 31. Be4 {[%emt 0:00:08]} c6 {[%emt 0:00:42]} 32. Ba5 {[%emt 0:00:24]} Rc8 {[%emt 0:00:23]} 33. Bb4 {[%emt 0:00:16]} 1-0

[Event "CZE-ch U16 Girls 2023"]
[Site "Teplice"]
[Date "2023.03.15"]
[Round "6.1"]
[White "Cinkova, Vicky"]
[Black "Zelbova, Lada"]
[Result "0-1"]
[ECO "A21"]
[WhiteElo "1285"]
[BlackElo "1822"]
[Annotator "NA RC COMBH"]
[PlyCount "66"]
[EventDate "2023.03.09"]
[EventType "swiss"]
[EventCountry "CZE"]
[SourceTitle "playchess.com"]
[Source "ChessBase"]
[SourceQuality "1"]
[TimeControl "40/5400+30:1800+30"]

1. c4 e5 {[%emt 0:00:29]} 2. Nc3 {[%emt 0:00:13]} g6 {[%emt 0:03:12]} 3. e4 {[%emt 0:04:51]} Bg7 {[%emt 0:01:37]} 4. d3 {[%emt 0:00:30]} Nc6 {[%emt 0:00:30]} 5. Be3 {[%emt 0:04:31]} Nge7 {[%emt 0:01:35]} 6. Qd2 {[%emt 0:05:06]} Nd4 {[%emt 0:01:15]} 7. Be2 {[%emt 0:04:54]} d6 {[%emt 0:06:20]} 8. h3 {[%emt 0:03:04]} Nec6 {[%emt 0:02:54]} 9. g4 {[%emt 0:03:43]} a6 {[%emt 0:12:02]} 10. h4 {[%emt 0:03:52]} Nxe2 {[%emt 0:02:24]} 11. Qxe2 {[%emt 0:00:55]} Nd4 {[%emt 0:01:08]} 12. Qd1 {[%emt 0:01:21]} h6 {[%emt 0:09:04]} 13. g5 {[%emt 0:13:24]} (13. h5 $17) 13... h5 {[%emt 0:01:30]} 14. f3 {[%emt 0:05:32]} c6 {[%emt 0:02:40]} 15. Nce2 {[%emt 0:06:43]} Qb6 {[%emt 0:02:09]} 16. Nxd4 {[%emt 0:04:11]} exd4 {[%emt 0:00:19]} 17. Bc1 {[%emt 0:05:49]} O-O {[%emt 0:03:10]} 18. Kf2 {[%emt 0:03:48] [#]} ({White should play} 18. Qc2) 18... d5 $1 {[%emt 0:02:46]} 19. b3 {[%emt 0:05:58]} Be6 {[%emt 0:02:34]} 20. Ba3 {[%emt 0:05:13]} (20. Kg2 $17) 20... Rfe8 {[%emt 0:02:00]} 21. c5 {[%emt 0:01:37]} Qa5 {[%emt 0:02:27]} 22. Qc1 {[%emt 0:00:21]} Bf8 {[%emt 0:09:17]} 23. Ne2 {[%emt 0:03:33]} dxe4 {[%emt 0:02:30]} 24. Nxd4 {[%emt 0:02:49]} exd3 {[%emt 0:03:12]} 25. b4 {[%emt 0:03:01]} Qd8 {[%emt 0:06:08]} 26. Bb2 {[%emt 0:02:19]} Bg7 {[%emt 0:02:44]} 27. Nxe6 {[%emt 0:00:31]} Rxe6 {[%emt 0:01:02]} 28. Bxg7 {[%emt 0:00:30]} Re2+ {[%emt 0:01:05]} 29. Kf1 {[%emt 0:00:09]} Qd5 {[%emt 0:04:08]} 30. Rh3 {[%emt 0:01:24]} Kxg7 {[%emt 0:05:23]} 31. Qc3+ {[%emt 0:00:40]} Kg8 {[%emt 0:00:59]} 32. Rd1 {[%emt 0:00:27]} Rae8 {[%emt 0:02:47]} 33. Qxd3 $19 {[%emt 0:03:48]} Re1+ 0-1

[Event "CZE-ch U16 Girls 2023"]
[Site "Teplice"]
[Date "2023.03.15"]
[Round "6.2"]
[White "Dudkova, Josefina"]
[Black "Havelkova, Beata"]
[Result "0-1"]
[ECO "A45"]
[WhiteElo "1519"]
[BlackElo "1670"]
[Annotator "NA RC COMBH"]
[PlyCount "88"]
[EventDate "2023.03.09"]
[EventType "swiss"]
[EventCountry "CZE"]
[SourceTitle "playchess.com"]
[Source "ChessBase"]
[SourceQuality "1"]
[TimeControl "40/5400+30:1800+30"]

1. d4 {[%emt 0:00:04]} Nf6 {[%emt 0:00:06]} 2. Bf4 {[%emt 0:00:08]} g6 {[%emt 0:00:40]} 3. Nc3 {[%emt 0:00:31]} Bg7 {[%emt 0:01:54]} 4. Qd2 {[%emt 0:00:17]} d6 {[%emt 0:06:20]} 5. O-O-O {[%emt 0:03:44]} Nbd7 {[%emt 0:07:48]} 6. e4 {[%emt 0:09:52]} h6 {[%emt 0:06:13]} 7. Bc4 {[%emt 0:06:37]} g5 {[%emt 0:13:06]} 8. Bg3 {[%emt 0:06:51]} Nb6 {[%emt 0:06:56]} 9. Bb3 {[%emt 0:01:56]} Be6 {[%emt 0:06:54]} 10. Bxe6 {[%emt 0:09:11]} fxe6 {[%emt 0:00:05]} 11. h4 {[%emt 0:03:28]} Nh5 {[%emt 0:09:13]} 12. Qe2 {[%emt 0:10:45]} Nxg3 {[%emt 0:02:00]} 13. fxg3 {[%emt 0:01:25]} Kd7 {[%emt 0:00:22]} 14. d5 {[%emt 0:05:11]} Qg8 {[%emt 0:02:49]} 15. hxg5 {[%emt 0:04:02]} Bxc3 {[%emt 0:03:35]} 16. bxc3 {[%emt 0:01:07]} Qxg5+ {[%emt 0:01:05]} 17. Qd2 {[%emt 0:07:45]} Rag8 {[%emt 0:04:25]} 18. Qxg5 {[%emt 0:02:48]} Rxg5 {[%emt 0:00:07]} 19. dxe6+ {[%emt 0:00:35]} Kxe6 {[%emt 0:00:12]} 20. Ne2 {[%emt 0:00:20]} Kd7 {[%emt 0:02:54]} 21. Rdf1 {[%emt 0:04:30]} Ra5 {[%emt 0:02:07]} 22. Kb1 {[%emt 0:01:22]} Nc4 {[%emt 0:02:13]} 23. Rf4 {[%emt 0:01:39]} Re5 {[%emt 0:03:41]} 24. Kc1 {[%emt 0:01:31]} Ne3 {[%emt 0:03:56]} 25. Rh2 {[%emt 0:01:01]} Rh7 {[%emt 0:02:00]} 26. Nd4 {[%emt 0:01:20]} Ra5 {[%emt 0:02:33]} 27. Kb2 {[%emt 0:02:06]} e5 {[%emt 0:00:46]} 28. Nb3 {[%emt 0:01:06]} Nc4+ {[%emt 0:00:17]} 29. Kb1 {[%emt 0:00:49]} exf4 {[%emt 0:00:15]} 30. Nxa5 {[%emt 0:00:13]} Nxa5 {[%emt 0:00:35]} 31. gxf4 {[%emt 0:00:12]} Nc4 {[%emt 0:00:30]} 32. Kc1 {[%emt 0:00:52]} Re7 {[%emt 0:01:53]} 33. Kd1 {[%emt 0:04:46]} Rxe4 {[%emt 0:00:14]} 34. g3 {[%emt 0:00:51]} Ne3+ {[%emt 0:01:37]} 35. Kc1 {[%emt 0:00:30]} Nf1 {[%emt 0:01:57]} 36. Rg2 {[%emt 0:00:44]} Ke6 {[%emt 0:01:11]} 37. Rg1 {[%emt 0:00:58]} Nh2 {[%emt 0:02:45]} 38. Rh1 {[%emt 0:00:34]} Ng4 {[%emt 0:00:10]} 39. Rh4 {[%emt 0:00:33]} Kf5 {[%emt 0:01:35]} 40. Rh5+ {[%emt 0:01:10]} Kg6 {[%emt 0:00:24]} 41. Rh4 {[%emt 0:30:29]} h5 {[%emt 0:30:10]} 42. Kd2 {[%emt 0:02:09]} Ra4 {[%emt 0:00:30]} 43. f5+ {[%emt 0:00:53]} Kg5 {[%emt 0:01:31]} 44. f6 {[%emt 0:01:16]} Ra5 {[%emt 0:00:09]} 0-1

[Event "CZE-ch U16 Girls 2023"]
[Site "Teplice"]
[Date "2023.03.15"]
[Round "6.3"]
[White "Janouskova, Adela"]
[Black "Stavova, Marketa"]
[Result "1/2-1/2"]
[ECO "C45"]
[WhiteElo "1558"]
[BlackElo "1284"]
[Annotator "NA RC COMBH"]
[PlyCount "71"]
[EventDate "2023.03.09"]
[EventType "swiss"]
[EventCountry "CZE"]
[SourceTitle "playchess.com"]
[Source "ChessBase"]
[SourceQuality "1"]
[TimeControl "40/5400+30:1800+30"]

1. e4 {[%emt 0:00:04]} e5 {[%emt 0:00:16]} 2. Nf3 {[%emt 0:00:06]} Nc6 {[%emt 0:00:19]} 3. d4 {[%emt 0:00:13]} exd4 {[%emt 0:00:18]} 4. Nxd4 {[%emt 0:00:32]} Bc5 {[%emt 0:00:49]} 5. Nb3 {[%emt 0:00:36]} Bb6 {[%emt 0:00:42]} 6. Nc3 {[%emt 0:00:56]} Nge7 {[%emt 0:01:32]} 7. Qe2 {[%emt 0:03:01]} d6 {[%emt 0:01:26]} 8. Be3 {[%emt 0:00:22]} Be6 {[%emt 0:01:49]} 9. O-O-O {[%emt 0:01:26]} Qd7 {[%emt 0:01:27]} 10. g3 {[%emt 0:02:52]} O-O-O {[%emt 0:01:27]} 11. Bxb6 {[%emt 0:01:19]} axb6 {[%emt 0:00:37]} 12. Bg2 {[%emt 0:02:36]} Kb8 {[%emt 0:02:44]} 13. h3 {[%emt 0:01:43]} Qc8 {[%emt 0:01:38]} 14. f4 {[%emt 0:06:24]} f5 {[%emt 0:02:03]} 15. Nd5 {[%emt 0:09:35]} Rhe8 {[%emt 0:04:56]} 16. Nxe7 {[%emt 0:04:08]} Nxe7 {[%emt 0:02:05]} 17. Nd4 {[%emt 0:06:48]} Bd7 {[%emt 0:02:30]} 18. e5 {[%emt 0:04:14]} dxe5 {[%emt 0:03:35]} 19. Qxe5 {[%emt 0:04:02]} g6 20. Qe2 {[%emt 0:04:29]} Nc6 {[%emt 0:04:20]} 21. Qc4 {[%emt 0:03:47]} Nxd4 {[%emt 0:01:42]} 22. Rxd4 Be6 {[%emt 0:01:37]} 23. Rxd8 {[%emt 0:04:32]} Rxd8 {[%emt 0:00:11]} 24. Qe2 {[%emt 0:02:57]} Re8 {[%emt 0:02:36]} 25. Qf3 {[%emt 0:01:37]} Bd7 {[%emt 0:01:02]} 26. Qd3 {[%emt 0:01:10]} Be6 {[%emt 0:02:01]} 27. Rd1 {[%emt 0:00:57]} h6 {[%emt 0:02:43]} 28. a3 {[%emt 0:02:02]} g5 {[%emt 0:01:08]} 29. fxg5 {[%emt 0:04:12]} hxg5 {[%emt 0:00:10]} 30. Qf3 {[%emt 0:03:50]} g4 {[%emt 0:02:27]} 31. hxg4 {[%emt 0:00:37]} fxg4 {[%emt 0:01:25]} 32. Qc3 {[%emt 0:02:09]} Bf5 {[%emt 0:01:28]} 33. Re1 {[%emt 0:01:19]} Rd8 {[%emt 0:00:59]} 34. Rd1 {[%emt 0:04:37]} Re8 {[%emt 0:00:30]} 35. Re1 {[%emt 0:00:51]} Rd8 {[%emt 0:00:18]} 36. Rd1 {[%emt 0:10:13]} 1/2-1/2

[Event "CZE-ch U16 Girls 2023"]
[Site "Teplice"]
[Date "2023.03.15"]
[Round "6.4"]
[White "Kavanova, Anezka"]
[Black "Dobsa, Emma"]
[Result "1/2-1/2"]
[ECO "C67"]
[WhiteElo "1384"]
[BlackElo "1449"]
[Annotator "NA RC COMBH"]
[PlyCount "54"]
[EventDate "2023.03.09"]
[EventType "swiss"]
[EventCountry "CZE"]
[SourceTitle "playchess.com"]
[Source "ChessBase"]
[SourceQuality "1"]
[TimeControl "40/5400+30:1800+30"]

1. e4 {[%emt 0:00:02]} e5 {[%emt 0:00:05]} 2. Nf3 {[%emt 0:00:12]} Nc6 {[%emt 0:00:06]} 3. Bb5 {[%emt 0:00:04]} Nf6 {[%emt 0:00:07]} 4. O-O {[%emt 0:00:10]} Nxe4 {[%emt 0:00:04]} 5. d4 {[%emt 0:00:07]} Nd6 {[%emt 0:00:09]} 6. Bg5 {[%emt 0:00:09]} Be7 {[%emt 0:19:49]} 7. Bxe7 {[%emt 0:00:07]} Qxe7 {[%emt 0:00:06]} 8. dxe5 {[%emt 0:05:14]} Nxb5 {[%emt 0:06:12]} 9. a4 {[%emt 0:00:06]} Qb4 {[%emt 0:01:35]} 10. axb5 {[%emt 0:02:43]} Qxb2 {[%emt 0:02:08]} 11. Na3 {[%emt 0:00:26]} Nb4 {[%emt 0:08:42]} 12. Qd2 {[%emt 0:03:04]} Na2 {[%emt 0:00:41]} 13. Qd3 {[%emt 0:07:54]} Nc3 {[%emt 0:01:59]} 14. Nd4 {[%emt 0:31:52]} Qb4 {[%emt 0:03:16]} 15. Rfe1 {[%emt 0:04:15]} O-O {[%emt 0:11:12]} 16. Re3 {[%emt 0:06:45]} Nd5 {[%emt 0:02:00]} 17. Rh3 {[%emt 0:01:18]} h6 {[%emt 0:01:12]} 18. Nf5 {[%emt 0:11:33]} Nf4 {[%emt 0:03:19]} 19. Nxh6+ {[%emt 0:00:37]} gxh6 {[%emt 0:00:12]} 20. Rg3+ {[%emt 0:00:45]} Ng6 {[%emt 0:01:52]} 21. Rxg6+ {[%emt 0:00:16]} fxg6 {[%emt 0:00:01]} 22. Qxg6+ {[%emt 0:00:08]} Kh8 {[%emt 0:00:08]} 23. Qxh6+ {[%emt 0:00:05]} Kg8 {[%emt 0:00:08]} 24. Qg6+ {[%emt 0:00:03]} Kh8 {[%emt 0:00:12]} 25. Qh6+ {[%emt 0:00:07]} Kg8 {[%emt 0:00:30]} 26. Qg6+ {[%emt 0:00:06]} Kh8 {[%emt 0:00:05]} 27. Qh6+ {[%emt 0:00:25]} Kg8 {[%emt 0:00:02]} 1/2-1/2